bitfinex/quotes_SOLUSD_20250422
["timestamp","ask_amount","ask_price","bid_price","bid_amount"]
[1745365170510,22.25250649,148.66,148.65,16.76]
[1745365170934,22.25250649,148.67,148.65,16.76]
[1745365171525,42.21559935,148.71,148.65,16.76]
[1745365171727,22.25250649,148.68,148.65,16.76]
[1745365172232,22.25250649,148.67,148.65,16.76]
[1745365172819,28.97890859,148.67,148.65,16.76]
[1745365173301,6.7264021,148.67,148.65,16.76]
[1745365173834,28.97890859,148.67,148.65,16.76]
[1745365174926,22.25250649,148.68,148.65,16.76]
[1745365175504,22.25250649,148.67,148.65,16.76]
[1745365176225,22.25250649,148.68,148.65,16.76]
[1745365176803,22.25250649,148.66,148.65,16.76]
[1745365177009,22.25250649,148.66,148.6,1.5013]
[1745365177010,18.64964886,148.65,148.59,230.743]
[1745365177227,22.25250649,148.6,148.59,0.063]
[1745365178006,22.25250649,148.61,148.59,0.063]
[1745365178424,22.25250649,148.6,148.59,0.063]
[1745365178625,8.0615,148.65,148.59,0.063]
[1745365178927,22.25250649,148.61,148.59,0.063]
[1745365179126,28.98172345,148.61,148.59,0.063]
[1745365179322,20.65989417,148.61,148.59,0.063]
[1745365181646,13.93067721,148.61,148.59,0.063]
[1745365181832,13.93067721,148.62,148.59,0.063]
[1745365182032,13.93067721,148.63,148.59,0.063]
[1745365182339,20.65834136,148.64,148.59,13.99367721]
[1745365182744,20.65834136,148.64,148.59,0.063]
[1745365183245,20.65880549,148.63,148.59,0.063]
[1745365183441,6.72812828,148.63,148.59,13.99367721]
[1745365183644,13.93067721,148.64,148.59,13.99367721]
[1745365183953,6.72630658,148.67,148.61,13.93067721]
[1745365184136,13.93067721,148.66,148.61,13.93067721]
[1745365184545,13.93067721,148.64,148.59,0.063]
[1745365184749,13.93067721,148.63,148.59,0.063]
[1745365185050,13.93067721,148.62,148.59,0.063]
[1745365185258,18.64964886,148.64,148.59,0.063]
[1745365185434,6.72721157,148.65,148.59,0.063]
[1745365185630,6.72721157,148.65,148.59,13.99367721]
[1745365185845,13.93067721,148.64,148.59,13.99367721]
[1745365186043,13.93067721,148.63,148.59,0.063]
[1745365186871,6.72721157,148.65,148.59,0.063]
[1745365187160,13.93067721,148.63,148.59,0.063]
[1745365187964,20.65897219,148.63,148.59,0.063]
[1745365188462,13.93067721,148.6,148.59,0.063]
[1745365190273,20.66015231,148.6,148.59,0.063]
[1745365193244,39.30980117,148.6,148.59,0.063]
[1745365194136,25.37912396,148.6,148.59,0.063]
[1745365194337,39.30980117,148.6,148.59,0.063]
[1745365197274,20.66015231,148.6,148.59,0.063]
[1745365200345,39.30980117,148.6,148.59,0.063]
[1745365200547,18.64964886,148.59,148.53,0.063]
[1745365200856,13.93067721,148.54,148.53,0.063]
[1745365202271,32.58032607,148.54,148.53,0.063]
[1745365202770,39.31251941,148.54,148.53,0.063]
[1745365202952,53.24319662,148.54,148.53,1e-08]
[1745365203659,18.64964886,148.53,148.5,0.063]
[1745365203853,32.58032607,148.51,148.5,0.063]
[1745365204673,39.31387936,148.51,148.5,0.063]
[1745365205856,20.6642305,148.51,148.5,0.063]
[1745365206676,39.31387936,148.51,148.5,0.063]
[1745365211461,26.79144886,148.5,148.44,0.063]
[1745365211778,13.93067721,148.45,148.44,0.063]
[1745365212282,26.79144886,148.5,148.44,0.063]
[1745365212478,13.93067721,148.46,148.44,0.063]
[1745365212684,13.93067721,148.45,148.44,0.063]
[1745365212855,26.79144886,148.5,148.44,0.063]
[1745365213055,13.93067721,148.46,148.44,0.063]
[1745365213272,26.79144886,148.5,148.44,0.063]
[1745365213273,13.93067721,148.45,148.44,0.063]
[1745365213562,20.66695205,148.45,148.44,0.063]
[1745365213872,6.73491379,148.48,148.44,0.063]
[1745365214056,20.665591,148.48,148.44,0.063]
[1745365214476,13.93067721,148.47,148.44,0.063]
[1745365214664,13.93067721,148.45,148.44,0.063]
[1745365214883,18.64964886,148.47,148.44,0.063]
[1745365215082,6.73491379,148.48,148.44,0.063]
[1745365215383,13.93067721,148.47,148.44,0.063]
[1745365215569,6.73582109,148.46,148.44,0.063]
[1745365215761,20.6664983,148.46,148.44,0.063]
[1745365216487,13.93067721,148.45,148.44,0.063]
[1745365217087,20.6664983,148.46,148.44,0.063]
[1745365218386,13.93067721,148.45,148.44,0.063]
[1745365219182,20.6664983,148.46,148.44,0.063]
[1745365220193,13.93067721,148.45,148.44,0.063]
[1745365220966,16.83862629,148.47,148.44,0.063]
[1745365221265,13.93067721,148.45,148.44,0.063]
[1745365221692,20.66695205,148.45,148.44,0.063]
[1745365223798,39.31660091,148.45,148.44,0.063]
[1745365224895,20.66695205,148.45,148.44,0.063]
[1745365225085,6.73627484,148.45,148.44,0.063]
[1745365225395,20.66695205,148.45,148.44,0.063]
[1745365227292,15.67235019,148.45,148.44,0.063]
[1745365228984,6.73627484,148.45,148.44,0.063]
[1745365229294,15.67235019,148.45,148.44,0.063]
[1745365232380,6.73627484,148.45,148.44,0.063]
[1745365233572,15.67235019,148.45,148.44,0.063]
[1745365234180,34.32199905,148.45,148.44,0.063]
[1745365240374,6.735892,148.46,148.44,0.063]
[1745365240579,8.93607535,148.45,148.44,0.063]
[1745365241690,15.67235019,148.45,148.44,0.063]
[1745365243911,8.93607535,148.45,148.44,0.063]
[1745365244295,15.67235019,148.45,148.44,0.063]
[1745365245997,15.67235019,148.45,148.44,2.5731362]
[1745365246194,34.32199905,148.45,148.44,2.5731362]
[1745365246707,34.32199905,148.45,148.44,0.063]
[1745365251706,27.58572421,148.45,148.44,0.063]
[1745365253609,34.32199905,148.45,148.44,0.063]
[1745365254602,18.64964886,148.44,148.43,0.03]
[1745365254807,27.58572421,148.44,148.39,0.063]
[1745365255007,8.93607535,148.4,148.39,0.063]
[1745365255417,8.93607535,148.4,148.39,2.57983507]
[1745365256019,8.93607535,148.41,148.39,2.57983507]
[1745365256324,8.93607535,148.41,148.4,2.51683507]
[1745365257119,27.58572421,148.41,148.4,2.51683507]
[1745365258342,34.32381463,148.41,148.4,2.51683507]
[1745365258925,18.64964886,148.4,148.39,0.063]
[1745365259129,27.58572421,148.4,148.39,0.063]
[1745365260029,34.32426868,148.4,148.39,0.063]
[1745365261110,27.58572421,148.4,148.39,0.063]
[1745365261508,34.32426868,148.4,148.39,0.063]
[1745365262232,27.58572421,148.4,148.39,0.063]
[1745365264435,18.64964886,148.44,148.39,0.063]
[1745365264643,18.64964886,148.44,148.39,8.99907535]
[1745365264938,8.93607535,148.45,148.4,8.93607535]
[1745365265806,8.93607535,148.44,148.39,1.5715]
[1745365266026,8.93607535,148.44,148.39,10.50757535]
[1745365267238,25.38517881,148.47,148.39,10.50757535]
[1745365267604,8.93607535,148.45,148.39,10.50757535]
[1745365267817,8.93607535,148.44,148.39,10.50757535]
[1745365268340,8.93607535,148.44,148.39,1.5715]
[1745365268738,8.93607535,148.44,148.39,10.50757535]
[1745365269748,8.93607535,148.43,148.39,1.5715]
[1745365269922,8.93607535,148.41,148.39,26.063]
[1745365270122,8.93607535,148.42,148.39,26.063]
[1745365270323,25.38562788,148.46,148.39,26.063]
[1745365270918,8.93607535,148.43,148.39,26.063]
[1745365272142,8.93607535,148.44,148.39,26.063]
[1745365272849,8.93607535,148.44,148.39,0.063]
[1745365273723,8.1344,148.5,148.39,34.99907535]
[1745365273923,8.93607535,148.45,148.4,34.93607535]
[1745365274123,8.93607535,148.45,148.41,16.72]
[1745365274548,8.93607535,148.44,148.41,16.72]
[1745365276149,8.93607535,148.45,148.41,16.72]
[1745365277228,8.93607535,148.44,148.41,16.72]
[1745365278341,6.73604382,148.46,148.41,16.72]
[1745365278342,8.93607535,148.43,148.41,16.72]
[1745365278548,8.93607535,148.44,148.41,16.72]
[1745365279956,34.1344,148.5,148.41,16.72]
[1745365280159,8.93607535,148.45,148.41,16.72]
[1745365281754,8.93607535,148.44,148.41,16.72]
[1745365282961,8.93607535,148.45,148.41,16.72]
[1745365283341,8.93607535,148.44,148.41,16.72]
[1745365283540,18.64964886,148.46,148.41,16.72]
[1745365283740,8.93607535,148.45,148.41,16.72]
[1745365284945,8.93607535,148.44,148.41,16.72]
[1745365287559,18.64964886,148.46,148.41,16.72]
[1745365287767,8.93607535,148.45,148.41,16.72]
[1745365291870,8.93607535,148.47,148.41,25.65607535]
[1745365292463,4.98553036,148.46,148.41,25.65607535]
[1745365293280,13.92160571,148.46,148.41,16.72]
[1745365293649,8.93607535,148.46,148.41,16.72]
[1745365294881,8.93607535,148.45,148.41,16.72]
[1745365296377,8.93607535,148.46,148.41,16.72]
[1745365296867,25.38414131,148.49,148.41,16.72]
[1745365297076,8.93607535,148.46,148.41,16.72]
[1745365297259,8.93607535,148.46,148.41,25.65607535]
[1745365297770,18.64964886,148.49,148.41,25.65607535]
[1745365297967,8.93607535,148.47,148.41,25.65607535]
[1745365300783,8.93607535,148.46,148.41,25.65607535]
[1745365300968,8.93607535,148.45,148.41,16.72]
[1745365301273,8.93607535,148.47,148.42,8.93607535]
[1745365302155,18.64964886,148.49,148.42,8.93607535]
[1745365302389,8.93607535,148.47,148.42,8.93607535]
[1745365303080,18.64964886,148.49,148.43,8.93607535]
[1745365303391,8.93607535,148.49,148.44,8.93607535]
[1745365304281,8.93607535,148.45,148.41,16.72]
[1745365304782,18.64964886,148.48,148.41,42.72]
[1745365304955,8.93607535,148.46,148.41,42.72]
[1745365305279,32.7636603,148.51,148.41,51.65607535]
[1745365305475,8.93607535,148.48,148.42,8.93607535]
[1745365307272,18.67964886,148.51,148.42,8.93607535]
[1745365307578,8.93607535,148.5,148.44,34.93607535]
[1745365308072,8.93607535,148.49,148.44,26.0]
[1745365308262,8.93607535,148.49,148.44,34.93607535]
[1745365309672,8.93607535,148.49,148.44,26.0]
[1745365310084,8.93607535,148.46,148.41,16.72]
[1745365310266,8.93607535,148.44,148.41,16.72]
[1745365310655,18.64964886,148.46,148.41,16.72]
[1745365310899,8.93607535,148.45,148.41,16.72]
[1745365311788,8.93607535,148.46,148.41,16.72]
[1745365311975,8.93607535,148.47,148.42,8.93607535]
[1745365312678,8.93607535,148.48,148.43,8.93607535]
[1745365312878,8.93607535,148.48,148.42,8.93607535]
[1745365314382,18.64964886,148.49,148.42,8.93607535]
[1745365314383,8.93607535,148.47,148.42,8.93607535]
[1745365314586,0.03,148.51,148.44,34.93607535]
[1745365314787,0.03,148.51,148.48,8.93607535]
[1745365314975,0.03,148.51,148.49,16.68]
[1745365315564,0.03,148.51,148.5,2.51514047]
[1745365316995,27.61572421,148.51,148.5,2.51514047]
[1745365318067,27.61572421,148.51,148.49,16.68]
[1745365318267,8.93607535,148.5,148.49,16.68]
[1745365319070,8.93607535,148.5,148.49,19.19354336]
[1745365319803,18.67964886,148.51,148.49,19.19354336]
[1745365319967,8.93607535,148.5,148.49,19.19354336]
[1745365321297,0.03,148.51,148.49,19.19354336]
[1745365321489,8.93607535,148.5,148.49,19.19354336]
[1745365322894,8.93607535,148.5,148.44,16.68]
[1745365322895,77.83063234,148.5,148.44,16.68]
[1745365323103,8.93607535,148.45,148.44,16.68]
[1745365323300,8.93607535,148.45,148.42,16.68]
[1745365323592,35.7443014,148.47,148.42,16.68]
[1745365323593,8.93607535,148.43,148.42,16.68]
[1745365324097,8.93607535,148.44,148.42,16.68]
[1745365324269,8.93607535,148.45,148.42,16.68]
[1745365325283,13.95901081,148.46,148.42,16.68]
[1745365325492,25.38418192,148.49,148.42,16.68]
[1745365325493,13.95901081,148.47,148.42,16.68]
[1745365326002,7.7666,148.5,148.43,13.95901081]
[1745365326298,13.95901081,148.5,148.45,26.0]
[1745365326671,13.98901081,148.51,148.45,39.95901081]
[1745365326990,13.95901081,148.49,148.45,26.0]
[1745365327692,13.95901081,148.47,148.42,30.63901081]
[1745365327881,13.95901081,148.47,148.42,42.68]
[1745365328083,6.76363008,148.51,148.43,13.95901081]
[1745365328277,6.76363008,148.51,148.45,26.0]
[1745365328278,13.95901081,148.5,148.45,26.0]
[1745365328483,13.95901081,148.5,148.44,13.95901081]
[1745365329597,0.03,148.51,148.45,13.95901081]
[1745365329788,0.03,148.51,148.47,39.95901081]
[1745365329979,0.03,148.51,148.48,30.59901081]
[1745365330693,0.03,148.51,148.49,13.95901081]
[1745365331893,0.03,148.51,148.48,16.64]
[1745365332102,0.03,148.51,148.48,30.59901081]
[1745365332398,0.03,148.51,148.5,39.95901081]
[1745365333676,0.03,148.51,148.5,41.30517563]
[1745365333894,0.03,148.53,148.51,18.64964886]
[1745365334204,0.03,148.53,148.52,39.95901081]
[1745365335078,0.03,148.53,148.52,26.0]
[1745365335294,0.03,148.53,148.52,13.95901081]
[1745365337016,0.03,148.53,148.52,32.60865967]
[1745365337379,0.03,148.59,148.52,32.60865967]
[1745365337380,13.88898195,148.61,148.55,26.0]
[1745365337601,13.88898195,148.61,148.56,30.59901081]
[1745365337982,0.03,148.62,148.56,30.59901081]
[1745365338184,0.03,148.62,148.58,26.0]
[1745365338377,0.03,148.62,148.58,39.95901081]
[1745365338686,0.03,148.62,148.59,26.0]
[1745365339778,0.03,148.62,148.59,39.95901081]
[1745365340010,0.03,148.62,148.6,13.95901081]
[1745365340210,0.03,148.62,148.61,13.95901081]
[1745365341406,0.03,148.62,148.59,26.0]
[1745365341614,0.03,148.62,148.59,39.95901081]
[1745365342103,0.03,148.62,148.6,13.95901081]
[1745365342305,0.03,148.62,148.61,13.95901081]
[1745365342604,0.03,148.62,148.61,39.95901081]
[1745365343007,0.03,148.62,148.56,19.50563403]
[1745365343008,0.03,148.62,148.59,39.95901081]
[1745365343320,0.03,148.62,148.6,13.95901081]
[1745365344107,13.04901081,148.66,148.59,26.0]
[1745365344306,13.04901081,148.66,148.61,13.95901081]
[1745365344504,13.04901081,148.66,148.62,16.64]
[1745365345514,18.67964886,148.69,148.62,30.59901081]
[1745365345692,13.95901081,148.67,148.62,30.59901081]
[1745365346112,13.95901081,148.67,148.62,16.64]
[1745365346299,13.95901081,148.66,148.62,16.64]
[1745365347000,0.03,148.69,148.65,39.95901081]
[1745365347200,0.03,148.69,148.68,26.0]
[1745365347401,0.03,148.69,148.68,42.64]
[1745365347815,0.03,148.69,148.68,16.64]
[1745365348026,13.98901081,148.69,148.66,26.0]
[1745365348314,13.95901081,148.67,148.66,16.64]
[1745365348899,13.95901081,148.67,148.63,26.0]
[1745365349104,0.03,148.69,148.64,16.64]
[1745365349306,13.95901081,148.66,148.64,16.64]
[1745365350721,13.95901081,148.65,148.64,16.64]
[1745365350896,13.95901081,148.66,148.64,16.64]
[1745365352814,13.95901081,148.65,148.64,16.64]
[1745365353811,13.95901081,148.66,148.64,16.64]
[1745365354416,18.67964886,148.69,148.64,16.64]
[1745365354597,13.95901081,148.66,148.64,16.64]
[1745365355217,13.95901081,148.65,148.64,16.64]
[1745365355590,13.95901081,148.65,148.56,95.95901081]
[1745365355789,13.95901081,148.61,148.57,16.62]
[1745365356002,13.95901081,148.6,148.57,16.62]
[1745365356219,13.95901081,148.6,148.57,42.62]
[1745365356401,18.64964886,148.66,148.57,16.62]
[1745365356599,13.95901081,148.61,148.57,42.62]
[1745365357707,13.95901081,148.61,148.57,16.62]
[1745365358099,13.95901081,148.61,148.57,42.62]
[1745365359431,13.95901081,148.6,148.57,42.62]
[1745365359805,13.95901081,148.61,148.57,42.62]
[1745365360000,18.64964886,148.67,148.6,26.0]
[1745365360208,13.95901081,148.64,148.6,26.0]
[1745365360415,13.95901081,148.65,148.6,13.95901081]
[1745365360703,13.95901081,148.64,148.62,26.0]
[1745365360907,13.95901081,148.64,148.63,16.6]
[1745365363330,18.64964886,148.67,148.63,16.6]
[1745365363506,13.95901081,148.64,148.63,16.6]
[1745365364820,25.37602004,148.67,148.63,16.6]
[1745365365044,13.95901081,148.64,148.63,16.6]
[1745365366224,13.95901081,148.65,148.63,16.6]
[1745365367322,13.95901081,148.66,148.63,16.6]
[1745365368830,13.95901081,148.65,148.63,16.6]
[1745365368999,13.95901081,148.64,148.63,16.6]
[1745365369613,13.95901081,148.65,148.63,16.6]
[1745365370016,13.95901081,148.64,148.63,16.6]
[1745365372934,25.37612418,148.67,148.63,16.6]
[1745365373104,13.95901081,148.64,148.63,16.6]
[1745365373304,0.03,148.69,148.63,42.6]
[1745365373614,0.03,148.69,148.66,39.95901081]
[1745365373820,0.03,148.69,148.67,13.95901081]
[1745365374429,0.03,148.69,148.66,39.95901081]
[1745365374828,13.98901081,148.69,148.66,26.0]
[1745365375032,13.95901081,148.67,148.65,16.6]
[1745365375236,13.95901081,148.68,148.65,16.6]
[1745365375530,0.03,148.69,148.65,16.6]
[1745365375832,13.95901081,148.68,148.65,16.6]
[1745365379042,0.03,148.69,148.65,16.6]
[1745365379335,13.98901081,148.69,148.65,16.6]
[1745365380518,13.95901081,148.68,148.65,16.6]
[1745365380719,13.98901081,148.69,148.65,16.6]
[1745365381621,0.03,148.69,148.65,16.6]
[1745365382338,13.95901081,148.68,148.65,16.6]
[1745365382750,0.03,148.69,148.65,16.6]
[1745365382751,13.95901081,148.67,148.65,16.6]
[1745365383231,13.95901081,148.68,148.65,16.6]
[1745365384453,13.95901081,148.66,148.65,16.6]
[1745365384737,13.95901081,148.67,148.65,16.6]
[1745365385244,0.03,148.69,148.65,16.6]
[1745365385245,13.95901081,148.68,148.65,16.6]
[1745365385648,0.03,148.69,148.65,16.6]
[1745365385833,13.95901081,148.68,148.65,16.6]
[1745365386642,0.03,148.69,148.65,16.6]
[1745365386838,13.95901081,148.68,148.65,16.6]
[1745365387949,13.98901081,148.69,148.65,16.6]
[1745365388131,0.03,148.69,148.65,30.55901081]
[1745365388329,0.03,148.69,148.66,13.95901081]
[1745365388730,0.03,148.69,148.65,30.55901081]
[1745365389331,0.03,148.69,148.66,13.95901081]
[1745365389851,0.03,148.69,148.65,56.55901081]
[1745365390827,0.03,148.69,148.65,42.6]
[1745365392233,0.03,148.69,148.65,56.55901081]
[1745365393651,13.98901081,148.69,148.65,42.6]
[1745365396540,13.95901081,148.68,148.65,42.6]
[1745365396932,13.98901081,148.69,148.65,42.6]
[1745365397365,0.03,148.69,148.65,42.6]
[1745365397747,0.03,148.69,148.65,30.55901081]
[1745365398157,13.98901081,148.69,148.65,16.6]
[1745365398337,0.03,148.69,148.65,30.55901081]
[1745365398538,0.03,148.69,148.66,13.95901081]
[1745365399170,0.03,148.69,148.65,30.55901081]
[1745365399663,0.03,148.69,148.66,13.95901081]
[1745365399975,0.03,148.69,148.67,13.95901081]
[1745365400144,0.03,148.69,148.68,13.95901081]
[1745365400474,0.03,148.69,148.67,13.95901081]
[1745365402160,0.03,148.69,148.68,16.56]
[1745365404565,0.03,148.69,148.68,30.51901081]
[1745365405345,0.03,148.69,148.68,25.45972228]
[1745365406258,0.03,148.69,148.68,16.56]
[1745365406657,0.03,148.69,148.68,25.45972228]
[1745365407976,0.03,148.69,148.68,16.56]
[1745365408276,0.03,148.69,148.68,25.45972228]
[1745365411047,0.03,148.69,148.68,65.84972228]
[1745365411663,0.03,148.69,148.68,56.95]
[1745365411864,0.03,148.69,148.68,65.84972228]
[1745365413164,0.03,148.69,148.68,25.45972228]
[1745365413676,8.92972228,148.69,148.68,16.56]
[1745365414181,0.03,148.69,148.66,256.5]
[1745365414478,8.92972228,148.69,148.67,16.56]
[1745365414685,8.89972228,148.68,148.62,49.28972228]
[1745365414870,8.89972228,148.67,148.63,16.56]
[1745365415075,8.89972228,148.67,148.64,26.0]
[1745365415256,8.89972228,148.67,148.63,16.56]
[1745365415462,8.89972228,148.66,148.63,42.56]
[1745365415876,0.03,148.69,148.63,42.56]
[1745365416057,8.89972228,148.67,148.63,42.56]
[1745365416376,8.89972228,148.64,148.61,16.56]
[1745365416591,35.59888912,148.68,148.61,16.56]
[1745365416592,18.64964886,148.67,148.61,16.56]
[1745365416792,8.89972228,148.63,148.61,16.56]
[1745365416952,18.64964886,148.67,148.61,16.56]
[1745365417153,8.89972228,148.63,148.61,16.56]
[1745365417367,13.92758874,148.63,148.61,16.56]
[1745365417577,13.92758874,148.62,148.61,16.56]
[1745365420989,7.7614,148.65,148.61,16.56]
[1745365420990,13.92758874,148.63,148.61,16.56]
[1745365421777,13.92758874,148.62,148.6,0.063]
[1745365421966,13.92758874,148.61,148.6,16.603]
[1745365423466,51.37744964,148.64,148.6,16.603]
[1745365423677,13.92758874,148.62,148.6,16.603]
[1745365423873,13.92758874,148.63,148.6,16.603]
[1745365424181,13.92758874,148.62,148.6,16.603]
[1745365424575,13.92758874,148.61,148.6,16.603]
[1745365424883,13.92758874,148.62,148.6,16.603]
[1745365425082,7.7614,148.65,148.6,16.603]
[1745365425272,13.92758874,148.63,148.6,16.603]
[1745365425472,13.92758874,148.62,148.6,16.603]
[1745365425674,13.92758874,148.61,148.6,16.603]
[1745365426976,13.92758874,148.63,148.6,16.603]
[1745365431069,7.7614,148.65,148.6,16.603]
[1745365431278,21.68898874,148.65,148.6,30.53058874]
[1745365431569,18.67964886,148.69,148.61,13.92758874]
[1745365431570,13.92758874,148.66,148.61,13.92758874]
[1745365431987,13.92758874,148.67,148.61,13.92758874]
[1745365432288,13.92758874,148.64,148.6,42.603]
[1745365432689,13.92758874,148.62,148.6,42.603]
[1745365433677,13.92758874,148.61,148.6,16.603]
[1745365433989,13.92758874,148.62,148.6,16.603]
[1745365434194,13.92758874,148.68,148.6,16.603]
[1745365434195,13.92758874,148.63,148.6,16.603]
[1745365434996,7.22602567,148.68,148.6,16.603]
[1745365435192,13.92758874,148.63,148.6,16.603]
[1745365435894,13.92758874,148.63,148.61,16.54]
[1745365437387,13.92758874,148.63,148.6,0.063]
[1745365437701,18.64964886,148.66,148.62,16.54]
[1745365438278,18.64964886,148.66,148.61,16.54]
[1745365438994,13.92758874,148.62,148.61,16.54]
[1745365439295,8.9145875,148.62,148.61,16.54]
[1745365439499,36.15835,148.68,148.61,16.54]
[1745365439704,8.9145875,148.64,148.61,16.54]
[1745365439997,42.88421134,148.68,148.61,16.54]
[1745365439998,8.9145875,148.62,148.61,16.54]
[1745365440501,8.9145875,148.63,148.61,16.54]
[1745365440708,8.9145875,148.62,148.6,0.063]
[1745365440868,8.9145875,148.61,148.6,16.603]
[1745365443288,7.6335,148.63,148.6,16.603]
[1745365443599,8.9145875,148.63,148.6,16.603]
[1745365446618,18.64964886,148.66,148.6,16.603]
[1745365446777,8.9145875,148.63,148.6,16.603]
[1745365447804,7.6335,148.67,148.6,51.5175875]
[1745365447993,7.6335,148.67,148.61,8.9145875]
[1745365447994,8.9145875,148.67,148.61,8.9145875]
[1745365448602,8.9145875,148.66,148.61,8.9145875]
[1745365448809,8.9145875,148.66,148.6,51.5175875]
[1745365449185,8.9145875,148.64,148.6,26.063]
[1745365449390,8.9145875,148.63,148.61,16.5]
[1745365449585,8.9145875,148.64,148.61,16.5]
[1745365450901,54.80799886,148.68,148.61,16.5]
[1745365450902,8.9145875,148.66,148.61,16.5]
[1745365451298,8.9145875,148.65,148.61,16.5]
[1745365451796,8.9145875,148.64,148.61,16.5]
[1745365452004,8.9145875,148.63,148.62,16.5]
[1745365452497,18.64964886,148.67,148.62,16.5]
[1745365452685,8.9145875,148.64,148.62,16.5]
[1745365453315,8.9145875,148.63,148.62,16.5]
[1745365453535,18.64964886,148.67,148.62,16.5]
[1745365453692,8.9145875,148.64,148.62,16.5]
[1745365457897,8.9145875,148.65,148.62,16.5]
[1745365458219,8.9145875,148.64,148.62,16.5]
[1745365458718,18.64964886,148.67,148.62,16.5]
[1745365458928,8.9145875,148.65,148.62,16.5]
[1745365462734,26.5,148.68,148.62,16.5]
[1745365462907,35.4145875,148.68,148.62,25.4145875]
[1745365463407,9.4145875,148.68,148.62,25.4145875]
[1745365464426,0.5,148.68,148.66,8.9145875]
[1745365465632,0.5,148.68,148.67,8.9145875]
[1745365468019,0.5,148.68,148.66,26.0]
[1745365468219,0.5,148.68,148.66,34.9145875]
[1745365468420,0.5,148.68,148.67,8.9145875]
[1745365469527,0.5,148.68,148.66,34.9145875]
[1745365470818,0.5,148.68,148.67,42.5]
[1745365471335,9.4145875,148.68,148.61,82.0]
[1745365471513,8.9145875,148.67,148.62,25.4145875]
[1745365471712,8.9145875,148.67,148.62,16.5]
[1745365471911,8.9145875,148.67,148.62,42.5]
[1745365472112,8.9145875,148.67,148.62,51.4145875]
[1745365472409,8.9145875,148.67,148.62,42.5]
[1745365472618,8.9145875,148.67,148.62,51.4145875]
[1745365474137,8.9145875,148.67,148.62,42.5]
[1745365474436,8.9145875,148.67,148.62,51.4145875]
[1745365475033,8.9145875,148.66,148.62,42.5]
[1745365475339,8.9145875,148.65,148.62,42.5]
[1745365475717,8.9145875,148.64,148.62,16.5]
[1745365476533,17.1063875,148.63,148.6,0.063]
[1745365476727,8.9145875,148.61,148.6,0.063]
[1745365478039,8.9145875,148.62,148.6,0.063]
[1745365478238,8.1918,148.63,148.6,0.063]
[1745365478631,17.1063875,148.63,148.6,0.063]
[1745365478946,8.9145875,148.62,148.6,0.063]
[1745365479445,13.92995001,148.62,148.6,0.063]
[1745365479960,22.12175001,148.63,148.6,0.063]
[1745365480450,13.92995001,148.62,148.6,0.063]
[1745365481560,13.92995001,148.61,148.6,0.063]
[1745365483258,20.65897228,148.61,148.6,0.063]
[1745365483469,13.92995001,148.61,148.6,0.063]
[1745365484538,39.30862114,148.61,148.6,0.063]
[1745365486559,53.23857115,148.61,148.6,0.063]
[1745365486969,39.30862114,148.61,148.6,0.063]
[1745365488856,53.23857115,148.61,148.6,0.063]
[1745365493162,18.64964886,148.61,148.6,0.063]
[1745365493351,32.57959887,148.61,148.6,0.063]
[1745365497347,18.64964886,148.61,148.6,0.063]
[1745365497554,22.12175001,148.63,148.6,0.063]
[1745365497755,13.92995001,148.62,148.6,0.063]
[1745365499262,8.91658191,148.61,148.6,0.063]
[1745365499452,27.56623077,148.61,148.6,0.063]
[1745365500868,27.56623077,148.62,148.6,0.063]
[1745365501064,27.56623077,148.61,148.6,0.063]
[1745365502676,69.96158068,148.61,148.6,0.063]
[1745365509995,26.0,148.62,148.6,0.063]